fUSD/lending_fUSD_20240916
["ID","MTS","AMOUNT","RATE_DAILY","PERIOD"]
[338292187,1726482170789,-2695.89,0.00028,60]
[338292188,1726482170820,-2695.89,0.00028,60]
[338292189,1726482170855,-2695.89,0.00028,60]
[338292190,1726482170883,-2695.89,0.00028,60]
[338292191,1726482170912,-2695.89,0.00028,60]
[338292192,1726482170940,-2695.89,0.00028,60]
[338292193,1726482170969,-2695.89,0.00028,60]
[338292194,1726482171001,-2695.89,0.00028,60]
[338292195,1726482171035,-2695.89,0.00028,60]
[338292196,1726482171066,-2695.89,0.00028,60]
[338292197,1726482171096,-2695.9432907,0.00028,60]
[338292198,1726482171126,-200.0,0.00028,30]
[338292199,1726482171156,-304.51506804,0.00028,60]
[338292200,1726482171186,-215.95,0.00028,30]
[338292201,1726482171218,-1032.04765779,0.00028,120]
[338292202,1726482171248,-1000.0,0.00028,120]
[338292203,1726482171279,-5000.38122158,0.00028,30]
[338292204,1726482171309,-250.0,0.00028,120]
[338292205,1726482171340,-150.0,0.00028093,120]
[338292206,1726482171373,-6936.13853701,0.0002813,30]
[338292207,1726482171404,-510.0,0.00028219,120]
[338292208,1726482171435,-1378.78350684,0.00028297,120]
[338292209,1726482171467,-150.0,0.00028332,120]
[338292210,1726482171500,-150.0,0.0002844,120]
[338292211,1726482171531,-500.0,0.00028452,120]
[338292212,1726482171561,-510.0,0.00028493,120]
[338292213,1726482171595,-500.0,0.00028497,120]
[338292214,1726482171625,-200.0,0.00028581,120]
[338292215,1726482171656,-752.83246266,0.00028613,120]
[338292216,1726482171685,-510.0,0.00028767,120]
[338292217,1726482171716,-7404.393563,0.000289,120]
[338292218,1726482171749,-157.92,0.000289,31]
[338292219,1726482171780,-157.92,0.000289,31]
[338292220,1726482171813,-157.92,0.000289,31]
[338292221,1726482171848,-157.92,0.000289,31]
[338292222,1726482171879,-150.0,0.00029,120]
[338292223,1726482171910,-1800.0,0.00029,30]
[338292224,1726482171941,-3000.0,0.00029,30]
[338292225,1726482171971,-200.0,0.00029,30]
[338292226,1726482172002,-1526.3110779,0.00029,30]
[338292227,1726482172031,-324.52318043,0.00029,120]
[338292228,1726482172061,-510.0,0.00029041,120]
[338292229,1726482172091,-500.0,0.00029052,120]
[338292230,1726482172122,-150.0,0.00029203,120]
[338292231,1726482172150,-510.0,0.00029315,120]
[338292232,1726482172494,-150.0,0.00029316,120]
[338292233,1726482172526,-150.0,0.00029349,120]
[338292234,1726482172557,-150.0,0.0002937,120]
[338292235,1726482172586,-500.0,0.00029402,120]
[338292236,1726482172616,-510.0,0.00029589,120]
[338292237,1726482172646,-6936.13853701,0.0002963,30]
[338292238,1726482172676,-500.0,0.00029652,120]
[338292239,1726482172735,-150.0,0.00029837,120]
[338292240,1726482172772,-510.0,0.00029863,120]
[338292241,1726482172809,-150.0,0.00029974,120]
[338292242,1726482172843,-1160.55357748,0.00029999,30]
[338292243,1726482172880,-1000.0,0.0003,30]
[338292244,1726482172914,-1000.0,0.0003,120]
[338292245,1726482172948,-150.0,0.0003,120]
[338292246,1726482172980,-1800.0,0.0003,31]
[338292247,1726482173013,-193.49320676,0.0003,120]
[338292248,1726482173046,-1368.074063,0.0003,30]
[338292249,1726482173080,-23470.4532499,0.0003,120]
[338292250,1726482173114,-3657.91816327,0.0003,90]
[338292251,1726482173148,-250.0,0.0003,120]
[338292252,1726482173182,-250.0,0.0003,120]
[338292253,1726482173215,-250.0,0.0003,120]
[338292254,1726482173258,-2000.0,0.0003,120]
[338292255,1726482173294,-2016.59209374,0.0003,120]
[338292256,1726482173330,-5000.0,0.0003,120]
[338292257,1726482173366,-46147.62959579,0.0003,30]
[338292258,1726482173401,-1000.0,0.0003,60]
[338292259,1726482173436,-1341.0,0.0003,120]
[338292260,1726482173470,-1778.65717918,0.0003,30]
[338292261,1726482173505,-1600.0,0.0003,120]
[338292262,1726482173539,-12395.38887508,0.0003,120]
[338292263,1726482173572,-2000.0,0.0003,120]
[338292264,1726482173607,-166.36268687,0.0003,120]
[338292265,1726482173641,-5000.0,0.0003,60]
[338292266,1726482173673,-4072.0144853,0.0003,120]
[338292267,1726482173707,-24561.85647901,0.0003,30]
[338292268,1726482173742,-151.0,0.0003,120]
[338292269,1726482173776,-151.0,0.0003,120]
[338292270,1726482173808,-15000.0,0.0003,60]
[338292271,1726482173841,-400.0,0.0003,120]
[338292272,1726482173875,-627.60821295,0.0003,120]
[338292273,1726482173909,-150.0,0.00030057,120]
[338292274,1726482173941,-510.0,0.00030136,120]
[338292275,1726482173973,-200.0,0.00030137,60]
[338292276,1726482174005,-500.0,0.00030252,120]
[338292277,1726482174038,-150.0,0.00030255,120]
[338292278,1726482174070,-500.0,0.00030306,120]
[338292279,1726482174102,-200.0,0.00030407,120]
[338292280,1726482174133,-510.0,0.0003041,120]
[338292281,1726482174164,-150.0,0.00030434,120]
[338292282,1726482174196,-12758.0,0.000305,30]
[338292283,1726482174227,-548.0,0.00030613,30]
[338292284,1726482174258,-200.0,0.00030682,30]
[338292285,1726482174288,-510.0,0.00030684,120]
[338292286,1726482174319,-752.83246266,0.0003075,120]
[338292287,1726482174349,-743.09,0.00030789,120]
[338292288,1726482174380,-250.0,0.000308,30]
[338292289,1726482174409,-500.0,0.00030852,120]
[338292290,1726482174439,-6000.0,0.0003089,120]
[338292291,1726482174469,-2743.45302234,0.00030919,44]
[338292292,1726482174501,-510.0,0.00030958,120]
[338292293,1726482174532,-151.0,0.00030959,120]
[338292294,1726482174563,-1800.0,0.00031,32]
[338292295,1726482174593,-150.0,0.00031,120]
[338292296,1726482174625,-150.0,0.00031,30]
[338292297,1726482174655,-150.0,0.00031,31]
[338292298,1726482174685,-150.0,0.00031,32]
[338292299,1726482174714,-150.0,0.00031,33]
[338292300,1726482174742,-150.0,0.00031,34]
[338292301,1726482174771,-150.0,0.00031,35]
[338292302,1726482174799,-150.0,0.00031,36]
[338292303,1726482174834,-150.0,0.00031,37]
[338292304,1726482174864,-150.0,0.00031,38]
[338292305,1726482174891,-150.0,0.00031,39]
[338292306,1726482174920,-150.0,0.00031,40]
[338292307,1726482174950,-150.0,0.00031,41]
[338292308,1726482174978,-150.0,0.00031,42]
[338292309,1726482175007,-150.0,0.00031,43]
[338292310,1726482175036,-150.0,0.00031,44]
[338292311,1726482175064,-150.0,0.00031,45]
[338292312,1726482175093,-150.0,0.00031,46]
[338292313,1726482175122,-150.0,0.00031,47]
[338292314,1726482175150,-150.0,0.00031,48]
[338292315,1726482175179,-150.0,0.00031,49]
[338292316,1726482175209,-150.0,0.00031,50]
[338292317,1726482175237,-150.0,0.00031,51]
[338292318,1726482175265,-150.0,0.00031,52]
[338292319,1726482175294,-150.0,0.00031,53]
[338292320,1726482175321,-150.0,0.00031,54]
[338292321,1726482175349,-150.0,0.00031,55]
[338292322,1726482175377,-150.0,0.00031,56]
[338292323,1726482175405,-150.0,0.00031,57]
[338292324,1726482175433,-150.0,0.00031,58]
[338292325,1726482175461,-150.0,0.00031,59]
[338292326,1726482175489,-150.0,0.00031,60]
[338292327,1726482175518,-150.0,0.00031,61]
[338292328,1726482175546,-150.0,0.00031,62]
[338292329,1726482175574,-150.0,0.00031,63]
[338292330,1726482175602,-150.0,0.00031,64]
[338292331,1726482175630,-150.0,0.00031,65]
[338292332,1726482175659,-150.0,0.00031,66]
[338292333,1726482175687,-150.0,0.00031,67]
[338292334,1726482175717,-150.0,0.00031,68]
[338292335,1726482175746,-150.0,0.00031,69]
[338292336,1726482175778,-150.0,0.00031,70]
[338292337,1726482175814,-150.0,0.00031,71]
[338292338,1726482175851,-150.0,0.00031,72]
[338292339,1726482175884,-150.0,0.00031,73]
[338292340,1726482175915,-800.0,0.00031,120]
[338292341,1726482175947,-508.0,0.00031,120]
[338292342,1726482175980,-150.0,0.00031,120]
[338292343,1726482176012,-496.00767918,0.00031,30]
[338292344,1726482176045,-306.70872288,0.00031,120]
[338292345,1726482176078,-5050.0,0.00031,60]
[338292346,1726482176109,-300.0,0.00031,120]
[338292347,1726482176146,-5161.80701058,0.00031,30]
[338292348,1726482176177,-204.2077241,0.00031,30]
[338292349,1726482176209,-250.0,0.0003111,120]
[338292350,1726482176238,-6936.13853701,0.0003113,30]
[338292351,1726482176274,-150.0,0.00031191,120]
[338292352,1726482176313,-200.0,0.000312,30]
[338292353,1726482176353,-500.0,0.00031211,120]
[338292354,1726482176396,-510.0,0.00031232,120]
[338292355,1726482176429,-13800.0,0.00031234,66]
[338292356,1726482176464,-150.0,0.00031242,120]
[338292357,1726482176516,-150.0,0.00031288,120]
[338292358,1726482176553,-150.00366938,0.000313,30]
[338292359,1726482176590,-3359.37,0.000313,30]
[338292360,1726482176625,-80000.0,0.000313,30]
[338292361,1726482176662,-155.18322927,0.0003131,30]
[338292362,1726482176698,-8065.4,0.00031339,30]
[338292363,1726482176733,-334.0,0.0003134,120]
[338292364,1726482176769,-250.0,0.00031345,120]
[338292365,1726482176806,-222.45,0.00031345,30]
[338292366,1726482176843,-155.57944436,0.000314,30]
[338292367,1726482176881,-500.0,0.00031452,120]
[338292368,1726482176920,-3225.26013006,0.000315,30]
[338292369,1726482176954,-454.16444108,0.000315,40]
[338292370,1726482176988,-150.0,0.00031502,120]
[338292371,1726482177021,-303.31702927,0.00031506,120]
[338292372,1726482177058,-150.0,0.00031605,120]
[338292373,1726482177092,-173.89,0.00031644,91]
[338292374,1726482177127,-150.0,0.00031778,120]
[338292375,1726482177164,-150.0,0.00031797,120]
[338292376,1726482177199,-346.85,0.000318,120]
[338292377,1726482177231,-752.83246266,0.00031888,120]
[338292378,1726482177267,-300.0,0.00031896,120]
[338292379,1726482177303,-151.0,0.00031918,120]
[338292380,1726482177337,-150.0,0.0003196,120]
[338292381,1726482177370,-150.0,0.00031987,120]
[338292382,1726482177400,-200.03431881,0.00032,30]
[338292383,1726482177432,-1000.0,0.00032,120]
[338292384,1726482177467,-150.0,0.00032,120]
[338292385,1726482177502,-62184.85553837,0.00032,120]
[338292386,1726482177535,-526.68,0.00032,120]
[338292387,1726482177565,-1800.0,0.00032,33]
[338292388,1726482177597,-500.0,0.00032052,120]
[338292389,1726482177630,-500.0,0.00032116,120]
[338292390,1726482177663,-200.0,0.00032232,120]
[338292391,1726482177696,-150.0,0.00032453,120]
[338292392,1726482177728,-6936.13853701,0.0003263,30]
[338292393,1726482177759,-500.0,0.00032652,120]
[338292394,1726482177790,-150.0,0.0003274,120]
[338292395,1726482177820,-7862.01119808,0.000328,90]
[338292396,1726482177853,-229.85193154,0.00032876,120]
[338292397,1726482177887,-320.24365096,0.00032876,120]
[338292398,1726482177920,-200.0,0.00032877,60]
[338292399,1726482177951,-352.01,0.00032877,30]
[338292400,1726482177983,-151.0,0.00032877,120]
[338292401,1726482178016,-150.0,0.0003289,120]
[338292402,1726482178049,-161.09417708,0.00033,120]
[338292403,1726482178080,-150.0,0.00033,120]
[338292404,1726482178110,-150.0,0.00033,120]
[338292405,1726482178143,-28155.27946193,0.00033,120]
[338292406,1726482178175,-1800.0,0.00033,34]
[338292407,1726482178775,-316.69420008,0.00033,120]
[338292408,1726482178811,-500.0,0.0003302,120]
[338292409,1726482178843,-3053.52,0.00033151,120]
[338292410,1726482178875,-500.0,0.00033252,120]
[338292411,1726482178906,-508.19740376,0.000333,120]
[338292412,1726482178940,-157.92,0.000335,31]
[338292413,1726482178973,-157.92,0.000335,31]
[338292414,1726482179003,-768.0,0.00033674,30]
[338292415,1726482179033,-151.0,0.00033836,120]
[338292416,1726482179061,-500.0,0.00033852,120]
[338292417,1726482179089,-216.586877,0.00033925,120]
[338292418,1726482179118,-2044.49082688,0.00034,30]
[338292419,1726482179148,-604.9676317,0.00034,120]
[338292420,1726482179177,-1000.0,0.00034,120]
[338292421,1726482179208,-150.0,0.00034,120]
[338292422,1726482179238,-298.818336,0.00034,120]
[338292423,1726482179266,-1800.0,0.00034,35]
[338292424,1726482179294,-1805.3568673,0.00034,120]
[338292425,1726482179321,-200.0,0.00034058,120]
[338292426,1726482179348,-6936.13853701,0.0003413,30]
[338292427,1726482179381,-5000.57402623,0.0003419,120]
[338292428,1726482179409,-762.08,0.00034246,50]
[338292429,1726482179437,-762.08,0.00034246,50]
[338292430,1726482179465,-762.08,0.00034246,50]
[338292431,1726482179494,-762.08,0.00034246,50]
[338292432,1726482179524,-762.08,0.00034246,50]
[338292433,1726482179555,-762.08,0.00034246,50]
[338292434,1726482179582,-762.08,0.00034246,50]
[338292435,1726482179610,-762.08,0.00034246,50]
[338292436,1726482179639,-762.08,0.00034246,50]
[338292437,1726482179667,-762.08,0.00034246,50]
[338292438,1726482179695,-762.08,0.00034246,50]
[338292439,1726482179722,-762.08,0.00034246,50]
[338292440,1726482179750,-762.08,0.00034246,50]
[338292441,1726482179778,-762.08,0.00034246,50]
[338292442,1726482179805,-762.08,0.00034246,50]
[338292443,1726482179835,-762.08,0.00034246,50]
[338292444,1726482179863,-762.08,0.00034246,50]
[338292445,1726482179891,-762.08,0.00034246,50]
[338292446,1726482179918,-762.08,0.00034246,50]
[338292447,1726482179946,-762.08,0.00034246,50]
[338292448,1726482179974,-762.08,0.00034246,50]
[338292449,1726482180002,-762.08,0.00034246,50]
[338292450,1726482180031,-762.08,0.00034246,50]
[338292451,1726482180060,-762.14624989,0.00034246,50]
[338292452,1726482180091,-3588.2,0.00034449,45]
[338292453,1726482180121,-500.0,0.00034452,120]
[338292454,1726482180153,-151.0,0.00034795,120]
[338292455,1726482180184,-1056.533325,0.000348,30]
[338292456,1726482180214,-443.01,0.0003499,120]
[338292457,1726482180242,-150.0,0.00035,120]
[338292458,1726482180272,-1800.0,0.00035,36]
[338292459,1726482180300,-6100.98090644,0.00035,30]
[338292460,1726482180328,-2041.69,0.00035,120]
[338292461,1726482180357,-1408.7111,0.00035,30]
[338292462,1726482180385,-3109.2588598,0.00035,120]
[338292463,1726482180413,-348.1060098,0.00035,60]
[338292464,1726482180442,-150.0,0.00035,30]
[338292465,1726482180470,-2364.14300156,0.00035,60]
[338292466,1726482180498,-156.131041,0.00035,30]
[338292467,1726482180526,-156.131041,0.00035,30]
[338292468,1726482180553,-156.131041,0.00035,30]
[338292469,1726482180580,-200.0,0.00035,120]
[338292470,1726482180610,-52552.40175319,0.00035,120]
[338292471,1726482180638,-752.83246266,0.00035025,120]
[338292472,1726482180666,-500.0,0.00035052,120]
[338292473,1726482180694,-151.0,0.00035452,120]
[338292474,1726482180722,-1760.888875,0.000355,30]
[338292475,1726482180749,-2113.06665,0.000356,30]
[338292476,1726482180776,-200.0,0.00035616,60]
[338292477,1726482180805,-6936.13853701,0.0003563,30]
[338292478,1726482180836,-500.0,0.00035652,120]
[338292479,1726482180866,-2113.06665,0.000357,30]
[338292480,1726482180894,-151.0,0.00035753,120]
[338292481,1726482180926,-2465.244425,0.000358,30]
[338292482,1726482180955,-32683.8668,0.000358,60]
[338292483,1726482180983,-2113.06665,0.0003582,30]
[338292484,1726482181012,-200.0,0.00035884,120]
[338292485,1726482181041,-1800.0,0.00036,37]
[338292486,1726482181069,-882.378,0.00036,120]
[338292487,1726482181098,-1000.0,0.00036,120]
[338292488,1726482181128,-150.0,0.00036,120]
[338292489,1726482181158,-479.88335543,0.00036,120]
[338292490,1726482181187,-30822.8259,0.00036,60]
[338292491,1726482181217,-1500.0,0.00036,30]
[338292492,1726482181245,-400.244313,0.00036,120]
[338292493,1726482181273,-500.0,0.00036252,120]
[338292494,1726482181302,-151.0,0.00036712,120]
[338292495,1726482181330,-31727.55617424,0.000368,60]
[338292496,1726482181358,-500.0,0.00036852,120]
[338292497,1726482181386,-410.0,0.00036986,60]
[338292498,1726482181414,-150.0,0.00037,120]
[338292499,1726482181441,-1800.0,0.00037,38]
[338292500,1726482181468,-3241.81037284,0.00037,90]
[338292501,1726482181497,-1075.0,0.00037042,30]
[338292502,1726482181525,-6936.13853701,0.0003713,30]
[338292503,1726482181554,-500.0,0.00037452,120]
[338292504,1726482181581,-235.83768671,0.00037475,120]
[338292505,1726482181608,-752.83246266,0.00037475,120]
[338292506,1726482181639,-151.0,0.00037671,120]
[338292507,1726482181667,-200.0,0.00037709,120]
[338292508,1726482181857,-3914.39,0.00037898,65]
[338292509,1726482181891,-381.82656854,0.00037999,120]
[338292510,1726482181922,-2037.74,0.00038,120]
[338292511,1726482181951,-33700.0,0.00038,30]
[338292512,1726482181980,-1000.0,0.00038,120]
[338292513,1726482182010,-1000.0,0.00038,120]
[338292514,1726482182042,-150.0,0.00038,120]
[338292515,1726482182073,-440.53339716,0.00038,120]
[338292516,1726482182103,-1726.38339208,0.00038,120]
[338292517,1726482182133,-85883.63049857,0.00038,30]
[338292518,1726482182163,-422.56027204,0.00038,30]
[338292519,1726482182193,-1048.62399696,0.00038,120]
[338292520,1726482182224,-801.96534159,0.00038,120]
[338292521,1726482182254,-500.0,0.00038052,120]
[338292522,1726482182283,-10043.17200884,0.0003819,120]
[338292523,1726482182311,-2000.0,0.00038356,120]
[338292524,1726482182340,-2000.0,0.00038356,120]
[338292525,1726482182368,-2000.0,0.00038356,120]
[338292526,1726482182396,-2000.0,0.00038356,120]
[338292527,1726482182424,-2000.0,0.00038356,120]
[338292528,1726482182453,-2000.0,0.00038356,120]
[338292529,1726482182480,-2000.0,0.00038356,120]
[338292530,1726482182508,-2000.0,0.00038356,120]
[338292531,1726482182536,-2000.0,0.00038356,120]
[338292532,1726482182566,-2000.0,0.00038356,120]
[338292533,1726482182595,-1088.95877115,0.00038356,120]
[338292534,1726482182625,-200.0,0.00038356,60]
[338292535,1726482182654,-223.04715328,0.000384,33]
[338292536,1726482182681,-185.94140934,0.000384,33]
[338292537,1726482182709,-177.64287755,0.000384,33]
[338292538,1726482182736,-179.21953421,0.000384,33]
[338292539,1726482182765,-179.87577292,0.000384,33]
[338292540,1726482182793,-374.9,0.00038499,120]
[338292541,1726482182822,-646.62812827,0.000385,120]
[338292542,1726482182855,-1000000.0,0.000385,120]
[338292543,1726482182887,-762082.59391747,0.000385,120]
[338292544,1726482190780,-271.412,0.00036301,30]
[338292545,1726482190821,-637917.40608253,0.000385,120]
[338292546,1726482190858,-714.158,0.0003857,52]
[338292547,1726482190893,-151.0,0.0003863,120]
[338292548,1726482190927,-6936.13753701,0.0003863,30]
[338292549,1726482190960,-500.0,0.00038652,120]
[338292550,1726482190999,-469.63,0.000388,120]
[338292551,1726482191034,-38568.56875,0.000388,60]
[338292552,1726482191067,-28803.5072116,0.000388,60]
[338292553,1726482191099,-287.01,0.0003888,120]
[338292554,1726482191133,-107253.70958881,0.0003888,90]
[338292555,1726482191164,-639664.63650988,0.0003888,90]
[338292556,1726482191195,-1388.75854341,0.0003888,90]
[338292557,1726482191225,-201198.30295478,0.000389,30]
[338292558,1726482191256,-150.0,0.00039,120]
[338292559,1726482191285,-1885.08576948,0.00039,120]
[338292560,1726482191316,-300.0,0.00039,120]
[338292561,1726482191347,-1064.9750241,0.00039,120]
[338292562,1726482191378,-261.47057534,0.00039,120]
[338292563,1726482191408,-1000000.0,0.00039,120]
[338292564,1726482191439,-332214.23145306,0.00039,120]
[338292565,1726482200497,-667785.76854694,0.00039,120]
[338292566,1726482200530,-1500.0,0.00039,120]
[338292567,1726482200558,-160.0,0.00039,30]
[338292568,1726482200586,-2303.94421382,0.00039,120]
[338292569,1726482200615,-4491.53346896,0.00039,30]
[338292570,1726482200644,-1230.54417,0.00039208,30]
[338292571,1726482200674,-500.0,0.00039252,120]
[338292572,1726482200703,-569.75905496,0.000394,30]
[338292573,1726482200731,-1230.54417,0.00039408,30]
[338292574,1726482200760,-2496.99017678,0.00039498,120]
[338292575,1726482200789,-200.0,0.00039535,120]
[338292576,1726482200818,-151.0,0.00039589,120]
[338292577,1726482200847,-1230.54417,0.00039608,30]
[338292578,1726482200875,-32475.2886,0.000398,60]
[338292579,1726482200905,-1230.54417,0.00039808,30]
[338292580,1726482200938,-500.0,0.00039852,120]
[338292581,1726482200966,-3236.84295154,0.000399,120]
[338292582,1726482200996,-16023.87087163,0.000399,60]
[338292583,1726482201028,-3332.73702294,0.000399,61]
[338292584,1726482201058,-410.0,0.00039986,90]
[338292585,1726482201088,-200.0,0.00039999,30]
[338292586,1726482201120,-50000.0,0.0004,30]
[338292587,1726482201153,-50000.0,0.0004,40]
[338292588,1726482201185,-1050.69027213,0.0004,32]
[338292589,1726482201215,-477.12749073,0.0004,30]
[338292590,1726482201245,-439.81872621,0.0004,30]
[338292591,1726482201275,-1167.88153007,0.0004,120]
[338292592,1726482201303,-1000.0,0.0004,120]
[338292593,1726482201333,-413.0,0.0004,120]
[338292594,1726482201360,-493.42627359,0.0004,120]
[338292595,1726482201388,-1046.24518031,0.0004,120]
[338292596,1726482201416,-398.0,0.0004,120]
[338292597,1726482201446,-150.0,0.0004,120]
[338292598,1726482201474,-163.8077173,0.0004,120]
[338292599,1726482201501,-344.07181987,0.0004,60]
[338292600,1726482201530,-1000.0,0.0004,120]
[338292601,1726482201559,-1000000.0,0.0004,120]
[338292602,1726482201589,-1000000.0,0.0004,120]
[338292603,1726482201619,-150596.01940222,0.0004,120]
[338292604,1726482206349,-357.16870669,0.00026137,120]
[338292605,1726482206429,-849403.98059778,0.0004,120]
[338292606,1726482206461,-1000000.0,0.0004,120]
[338292607,1726482206493,-1000000.0,0.0004,120]
[338292608,1726482206524,-150238.85069553,0.0004,120]
[338292610,1726482221569,-2000.0,0.00026783,120]
[338292611,1726482221602,-500.0,0.00026857,120]
[338292612,1726482221646,-2000.0,0.00030278,120]
[338292613,1726482221696,-2544.6,0.00033151,120]
[338292614,1726482221728,-2000.0,0.00033773,120]
[338292615,1726482221765,-2000.0,0.00037268,120]
[338292616,1726482221796,-1000.0,0.00038,120]
[338292617,1726482221829,-2000.0,0.00038999,120]
[338292618,1726482221864,-2000.0,0.0003979,120]
[338292619,1726482221898,-849761.14930447,0.0004,120]
[338292620,1726482221936,-340.0,0.0004,120]
[338292621,1726482221968,-374.0,0.0004,120]
[338292622,1726482221999,-500.0,0.0004,120]
[338292623,1726482222030,-838.94,0.0004,120]
[338292624,1726482222061,-1000000.0,0.0004,120]
[338292625,1726482222091,-1000000.0,0.0004,120]
[338292626,1726482222123,-132141.31069553,0.0004,120]
[338292627,1726482235578,-295.20298127,0.0002739,30]
[338292628,1726482235644,-2000.0,0.000388,37]
[338292629,1726482235675,-3005.46921,0.0003881,37]
[338292630,1726482235710,-867858.68930447,0.0004,120]
[338292631,1726482235742,-1000000.0,0.0004,120]
[338292632,1726482235776,-1000000.0,0.0004,120]
[338292633,1726482235809,-126840.63850426,0.0004,120]
[338292634,1726482241525,-500.0,0.00025962,120]
[338292635,1726482241558,-500.0,0.00026072,120]
[338292636,1726482241598,-500.0,0.00029047,120]
[338292637,1726482241667,-873159.36149574,0.0004,120]
[338292638,1726482241702,-1000000.0,0.0004,120]
[338292639,1726482241739,-1000000.0,0.0004,120]
[338292640,1726482241774,-125340.63850426,0.0004,120]
[338292641,1726482252914,380.77,0.00011617,2]
[338292642,1726482311706,-200.0,0.00028749,120]
[338292643,1726482311772,-13872.27807405,0.00032,30]
[338292644,1726482311813,-1061.33352375,0.00032,30]
[338292645,1726482311849,-500.0,0.00032132,120]
[338292646,1726482311889,-500.0,0.00035216,120]
[338292647,1726482311925,-200.0,0.00037706,120]
[338292648,1726482311967,-2000.0,0.00038,120]
[338292649,1726482312017,-500.0,0.00038301,120]
[338292650,1726482312061,-500.0,0.00038999,120]
[338292651,1726482312098,-300.0,0.00039,120]
[338292652,1726482312133,-1244.94806,0.00039208,30]
[338292653,1726482312168,-1244.94806,0.00039408,30]
[338292654,1726482312204,-1244.94806,0.00039608,30]
[338292655,1726482312240,-500.0,0.00039685,120]
[338292656,1726482312274,-1244.94806,0.00039808,30]
[338292657,1726482312309,-352.61,0.00039999,120]
[338292658,1726482312345,-874659.36149574,0.0004,120]
[338292659,1726482312380,-1000000.0,0.0004,120]
[338292660,1726482312414,-1000000.0,0.0004,120]
[338292661,1726482312448,-1000000.0,0.0004,120]
[338292662,1726482312483,-1000000.0,0.0004,120]
[338292663,1726482312517,-99874.62466646,0.0004,120]
[338292664,1726482316473,-900125.37533354,0.0004,120]
[338292665,1726482316512,-1000000.0,0.0004,120]
[338292666,1726482316548,-1000000.0,0.0004,120]
[338292667,1726482316583,-1000000.0,0.0004,120]
[338292668,1726482316619,-1000000.0,0.0004,120]
[338292669,1726482316660,-99874.62466646,0.0004,120]
[338292670,1726482321514,-900125.37533354,0.0004,120]
[338292671,1726482321551,-720.0,0.0004,120]
[338292672,1726482321587,-3619.02976283,0.0004,120]
[338292673,1726482321624,-1000000.0,0.0004,120]
[338292674,1726482321661,-1000000.0,0.0004,120]
[338292675,1726482321697,-100124.60209365,0.0004,60]
[338292676,1726482321733,-1995410.99280998,0.0004,30]
[338292677,1726482482007,5576.9412609,0.00012,2]
[338292678,1726482485434,1175.93632049,0.00012,2]
[338292693,1726482530053,153.22,0.00010959,2]
[338292709,1726482617430,1604.9676317,0.00013,3]
[338292719,1726482632261,-150.0,0.0001329,2]
[338292720,1726482632272,-300.0,0.00013441,2]
[338292721,1726482632282,-18906.65182428,0.00013442,2]
[338292722,1726482632294,-1200.17817572,0.00013442,2]
[338292723,1726482632303,-250.0,0.00013442,2]
[338292724,1726482632313,-160.57,0.00013469,2]
[338292725,1726482632327,-1000.0,0.00013469,2]